fUSD/lending_fUSD_20260418
["ID","MTS","AMOUNT","RATE_DAILY","PERIOD"]
[420683706,1776457950695,-1000.0,0.00042,120]
[420683707,1776457950705,-500.0,0.00042,120]
[420683708,1776457950715,-200.0,0.00042,120]
[420683709,1776457950724,-1000.0,0.00042,120]
[420683710,1776457950733,-1000.0,0.00042,120]
[420683711,1776457950746,-1000.0,0.00042,120]
[420683712,1776457950756,-1000.0,0.00042,120]
[420683713,1776457950765,-1000.0,0.00042,120]
[420683714,1776457950775,-1000.0,0.00042,120]
[420683715,1776457950784,-1000.0,0.00042,120]
[420683716,1776457950794,-1000.0,0.00042,120]
[420683717,1776457950803,-1000.0,0.00042,120]
[420683718,1776457950813,-1000.0,0.00042,120]
[420683719,1776457950822,-9720.56568115,0.00042,120]
[420683720,1776457950834,-1161.31240174,0.00042,120]
[420683721,1776457950844,-1161.31240174,0.00042,120]
[420683722,1776457950854,-1161.31240174,0.00042,120]
[420683723,1776457950864,-1161.31240174,0.00042,120]
[420683724,1776457950873,-1161.31240174,0.00042,120]
[420683725,1776457950882,-1161.31240174,0.00042,120]
[420683726,1776457950894,-1161.31240174,0.00042,120]
[420683727,1776457950903,-1161.31240174,0.00042,120]
[420683728,1776457950914,-1161.31240174,0.00042,120]
[420683729,1776457950924,-1161.31240174,0.00042,120]
[420683730,1776457950933,-1161.31240174,0.00042,120]
[420683731,1776457950945,-1161.31240174,0.00042,120]
[420683732,1776457950954,-1161.31240174,0.00042,120]
[420683733,1776457950964,-1161.31240174,0.00042,120]
[420683734,1776457950974,-92667.6,0.00042,120]
[420683735,1776457950983,-474.4446421,0.00042,120]
[420683736,1776457950993,-37000.0,0.00042,31]
[420683737,1776457951004,-286.35659793,0.00042,120]
[420683738,1776457951015,-80233.61853135,0.00042,120]
[420683739,1776457951024,-1068.33,0.00042,120]
[420683740,1776457951034,-2028.16431747,0.00042,120]
[420683741,1776457951043,-329.93362063,0.00042,120]
[420683742,1776457951053,-164.9339,0.00042,120]
[420683743,1776457951063,-50000.0,0.00042,45]
[420683744,1776457951072,-50000.0,0.00042,25]
[420683745,1776457951082,-10000.0,0.00042,60]
[420683746,1776457951091,-7776.7,0.00042,30]
[420683747,1776457951102,-213.9,0.00042,120]
[420683748,1776457951113,-194966.8,0.00042,120]
[420683749,1776457951124,-53057.0,0.00042,120]
[420683750,1776457951134,-2467.72431227,0.00042,61]
[420683751,1776457951144,-9307.67640585,0.00042,61]
[420683752,1776457951155,-2000.0,0.00042,60]
[420683753,1776457951165,-28551.48600416,0.00042,120]
[420683754,1776457951176,-476.93769426,0.00042,2]
[420683755,1776457951186,-490.35735931,0.00042,120]
[420683756,1776457951198,-710.0,0.00042,2]
[420683757,1776457951208,-236.0,0.00042,2]
[420683758,1776457951218,-1864.29,0.00042,120]
[420683759,1776457951227,-1864.29,0.00042,120]
[420683760,1776457951237,-268.32767163,0.00042,30]
[420683761,1776457951247,-1864.29,0.00042,120]
[420683762,1776457951257,-150.0,0.00042,53]
[420683763,1776457951268,-300.0,0.00042,120]
[420683764,1776457951278,-500.0,0.00042,120]
[420683765,1776457951288,-673.0,0.00042,120]
[420683766,1776457951299,-673.0,0.00042,120]
[420683767,1776457951309,-673.0,0.00042,120]
[420683768,1776457951319,-4800.0,0.00042009,30]
[420683769,1776457951330,-1379.38739135,0.0004201,2]
[420683770,1776457951341,-4156.4156,0.00042038,2]
[420683771,1776457951351,-188.74185013,0.0004205,2]
[420683772,1776457951360,-10000.0,0.00042055,30]
[420683773,1776457951370,-1101.33,0.00042081,120]
[420683774,1776457951379,-300.0,0.00042082,120]
[420683775,1776457951389,-1580.1125381,0.000421,30]
[420683776,1776457951398,-340.4981,0.000421,90]
[420683777,1776457951407,-1763.151,0.000421,90]
[420683778,1776457951416,-1763.15,0.000421,120]
[420683779,1776457951425,-371.9101,0.000421,90]
[420683780,1776457951434,-50000.0,0.000421,32]
[420683781,1776457951444,-396.01,0.000421,120]
[420683782,1776457951453,-2718.749,0.000421,90]
[420683783,1776457951462,-2718.749,0.000421,120]
[420683784,1776457951471,-2718.74,0.000421,90]
[420683785,1776457951480,-3721.712,0.000421,90]
[420683786,1776457951489,-3721.712,0.000421,90]
[420683787,1776457951501,-3721.71,0.000421,120]
[420683788,1776457951511,-2297.5406,0.000421,90]
[420683789,1776457951520,-2260.492,0.000421,120]
[420683790,1776457951529,-2260.492,0.000421,120]
[420683791,1776457951538,-2260.49,0.000421,120]
[420683792,1776457951549,-2718.749,0.000421,120]
[420683793,1776457951559,-2718.749,0.000421,90]
[420683794,1776457951568,-2000.0,0.00042113,120]
[420683795,1776457951577,-1000.0,0.00042117,14]
[420683796,1776457951587,-240.84314696,0.00042119,30]
[420683797,1776457951596,-1585.62585569,0.00042121,120]
[420683798,1776457951605,-448.09,0.00042128,30]
[420683799,1776457951614,-171.0,0.0004213,120]
[420683800,1776457951623,-159.04,0.00042133,30]
[420683801,1776457951632,-5012.0,0.00042147,60]
[420683802,1776457951642,-1000.0,0.00042148,14]
[420683803,1776457951651,-250.0,0.00042166,91]
[420683804,1776457951661,-2034.99352048,0.0004218,90]
[420683805,1776457951671,-1101.33,0.00042181,120]
[420683806,1776457951680,-4156.4156,0.00042182,2]
[420683807,1776457951690,-963.0,0.0004219,120]
[420683808,1776457951699,-500.0,0.00042191,120]
[420683809,1776457951709,-500.0,0.00042191,120]
[420683810,1776457951718,-500.0,0.00042191,120]
[420683811,1776457951728,-500.0,0.00042191,120]
[420683812,1776457951737,-500.0,0.00042191,120]
[420683813,1776457951746,-500.0,0.00042191,120]
[420683814,1776457951755,-168.84547758,0.00042191,120]
[420683815,1776457951765,-500.0,0.00042191,120]
[420683816,1776457951774,-500.0,0.00042191,120]
[420683817,1776457951784,-500.0,0.00042191,120]
[420683818,1776457951793,-500.0,0.00042191,120]
[420683819,1776457951802,-500.0,0.00042191,120]
[420683820,1776457951812,-500.0,0.00042191,120]
[420683821,1776457951821,-500.0,0.00042191,120]
[420683822,1776457951831,-500.0,0.00042191,120]
[420683823,1776457951840,-500.0,0.00042191,120]
[420683824,1776457951849,-500.0,0.00042191,120]
[420683825,1776457951858,-500.0,0.00042191,120]
[420683826,1776457951867,-500.0,0.00042191,120]
[420683827,1776457951876,-500.0,0.00042191,120]
[420683828,1776457951886,-500.0,0.00042191,120]
[420683829,1776457951895,-500.0,0.00042191,120]
[420683830,1776457951904,-500.0,0.00042191,120]
[420683831,1776457951914,-500.0,0.00042191,120]
[420683832,1776457951923,-500.0,0.00042191,120]
[420683833,1776457951932,-500.0,0.00042191,120]
[420683834,1776457951941,-500.0,0.00042191,120]
[420683835,1776457951952,-500.0,0.00042191,120]
[420683836,1776457951961,-500.0,0.00042191,120]
[420683837,1776457951970,-500.0,0.00042191,120]
[420683838,1776457951980,-500.0,0.00042191,120]
[420683839,1776457951990,-500.0,0.00042191,120]
[420683840,1776457951999,-500.0,0.00042191,120]
[420683841,1776457952009,-199.1630089,0.00042191,120]
[420683842,1776457952019,-500.0,0.00042191,120]
[420683843,1776457952028,-500.0,0.00042191,120]
[420683844,1776457952037,-389.86585856,0.00042191,120]
[420683845,1776457952046,-1500.0,0.00042191,50]
[420683846,1776457952056,-180.0,0.00042192,60]
[420683847,1776457952066,-5694.40902762,0.000422,2]
[420683848,1776457952075,-1000.0,0.000422,120]
[420683849,1776457952085,-500.0,0.000422,120]
[420683850,1776457952094,-12452.83714429,0.000422,120]
[420683851,1776457952103,-50000.0,0.000422,60]
[420683852,1776457952112,-171.0,0.000422,120]
[420683853,1776457952121,-153.0,0.000422,120]
[420683854,1776457952130,-13468743.4586,0.00042205,30]
[420683855,1776457952139,-157.0997553,0.00042232,2]
[420683856,1776457952149,-300.0,0.00042247,120]
[420683857,1776457952158,-2000.0,0.00042248,120]
[420683858,1776457952167,-200.0,0.00042264,95]
[420683859,1776457952175,-1101.33,0.00042281,120]
[420683860,1776457952184,-214.18,0.00042287,120]
[420683861,1776457952193,-770.45601862,0.00042289,120]
[420683862,1776457952203,-500.0,0.000423,118]
[420683863,1776457952212,-1000.0,0.000423,120]
[420683864,1776457952221,-909.33,0.000423,30]
[420683865,1776457952230,-38478.0,0.000423,60]
[420683866,1776457952239,-770.45601862,0.00042314,120]
[420683867,1776457952248,-4156.4156,0.00042326,2]
[420683868,1776457952258,-10000.0,0.00042329,30]
[420683869,1776457952267,-354.03064967,0.00042329,30]
[420683870,1776457952276,-500.0,0.00042351,30]
[420683871,1776457952420,-2000.0,0.00042351,30]
[420683872,1776457952430,-150.0,0.00042366,120]
[420683873,1776457952440,-1101.33,0.00042381,120]
[420683874,1776457952449,-676.0,0.00042384,27]
[420683875,1776457952458,-2000.0,0.00042384,120]
[420683876,1776457952468,-2646.73,0.0004239,120]
[420683877,1776457952477,-825.0,0.00042398,120]
[420683878,1776457952487,-320709.08327865,0.000424,120]
[420683879,1776457952496,-1000.0,0.000424,60]
[420683880,1776457952505,-2299.60058869,0.000424,30]
[420683881,1776457952515,-2000.0,0.000424,118]
[420683882,1776457952524,-150.0,0.00042406,120]
[420683883,1776457952533,-150.0,0.00042406,120]
[420683884,1776457952543,-220.84872752,0.0004241,120]
[420683885,1776457952551,-1357.82,0.0004241,30]
[420683886,1776457952560,-300.0,0.00042411,120]
[420683887,1776457952569,-150.0,0.00042445,120]
[420683888,1776457952579,-150.0,0.00042445,120]
[420683889,1776457952588,-150.0,0.00042445,120]
[420683890,1776457952597,-800.0,0.00042465,120]
[420683891,1776457952606,-800.0,0.00042465,120]
[420683892,1776457952616,-800.0,0.00042465,120]
[420683893,1776457952625,-800.0,0.00042465,120]
[420683894,1776457952634,-800.0,0.00042465,120]
[420683895,1776457952643,-800.0,0.00042465,120]
[420683896,1776457952652,-800.0,0.00042465,120]
[420683897,1776457952661,-800.0,0.00042465,120]
[420683898,1776457952671,-800.0,0.00042465,120]
[420683899,1776457952680,-800.0,0.00042465,120]
[420683900,1776457952689,-800.0,0.00042465,120]
[420683901,1776457952698,-800.0,0.00042465,120]
[420683902,1776457952708,-800.0,0.00042465,120]
[420683903,1776457952719,-800.0,0.00042465,120]
[420683904,1776457952730,-800.0,0.00042465,120]
[420683905,1776457952739,-800.0,0.00042465,120]
[420683906,1776457952749,-800.0,0.00042465,120]
[420683907,1776457952758,-800.0,0.00042465,120]
[420683908,1776457952767,-800.0,0.00042465,120]
[420683909,1776457952776,-800.0,0.00042465,120]
[420683910,1776457952786,-800.0,0.00042465,120]
[420683911,1776457952795,-800.0,0.00042465,120]
[420683912,1776457952803,-751.8648779,0.00042465,120]
[420683913,1776457952813,-500.0,0.00042465,120]
[420683914,1776457952823,-1500.0,0.00042465,60]
[420683915,1776457952832,-3388.0,0.00042466,10]
[420683916,1776457952841,-3388.0,0.00042466,10]
[420683917,1776457952850,-2803.36413644,0.00042466,10]
[420683918,1776457952860,-190.0,0.00042466,120]
[420683919,1776457952869,-177.0,0.00042466,120]
[420683920,1776457952879,-164.0,0.00042466,120]
[420683921,1776457952888,-1071.0,0.00042466,120]
[420683922,1776457952897,-150.0,0.00042466,120]
[420683923,1776457952907,-171.0,0.00042466,120]
[420683924,1776457952917,-155.0,0.00042466,120]
[420683925,1776457952927,-191.0,0.00042466,120]
[420683926,1776457952935,-250.0,0.00042466,120]
[420683927,1776457952944,-372.0,0.00042466,120]
[420683928,1776457952954,-400.662156,0.00042466,7]
[420683929,1776457952963,-400.662156,0.00042466,7]
[420683930,1776457952972,-400.662156,0.00042466,7]
[420683931,1776457952982,-400.662156,0.00042466,7]
[420683932,1776457952992,-400.662156,0.00042466,7]
[420683933,1776457953001,-400.662156,0.00042466,7]
[420683934,1776457953010,-400.662156,0.00042466,7]
[420683935,1776457953020,-400.662156,0.00042466,7]
[420683936,1776457953030,-400.662156,0.00042466,7]
[420683937,1776457953038,-400.662156,0.00042466,7]
[420683938,1776457953048,-400.662156,0.00042466,7]
[420683939,1776457953058,-400.662156,0.00042466,7]
[420683940,1776457953067,-400.662156,0.00042466,7]
[420683941,1776457953077,-400.662156,0.00042466,7]
[420683942,1776457953086,-400.662156,0.00042466,7]
[420683943,1776457953095,-400.662156,0.00042466,7]
[420683944,1776457953104,-400.662156,0.00042466,7]
[420683945,1776457953114,-400.662156,0.00042466,7]
[420683946,1776457953123,-400.662156,0.00042466,7]
[420683947,1776457953133,-400.662166,0.00042466,7]
[420683948,1776457953143,-151.0,0.00042466,120]
[420683949,1776457953152,-151.0,0.00042466,120]
[420683950,1776457953161,-151.0,0.00042466,120]
[420683951,1776457953171,-151.0,0.00042466,120]
[420683952,1776457953180,-151.0,0.00042466,120]
[420683953,1776457953189,-151.0,0.00042466,120]
[420683954,1776457953198,-293.344037,0.00042466,120]
[420683955,1776457953208,-151.0,0.00042466,120]
[420683956,1776457953219,-151.0,0.00042466,120]
[420683957,1776457953228,-151.0,0.00042466,120]
[420683958,1776457953236,-151.0,0.00042466,120]
[420683959,1776457953246,-151.0,0.00042466,120]
[420683960,1776457953255,-151.0,0.00042466,120]
[420683961,1776457953266,-151.0,0.00042466,120]
[420683962,1776457953276,-151.0,0.00042466,120]
[420683963,1776457953287,-151.0,0.00042466,120]
[420683964,1776457953296,-151.0,0.00042466,120]
[420683965,1776457953305,-151.0,0.00042466,120]
[420683966,1776457953314,-151.0,0.00042466,120]
[420683967,1776457953323,-151.0,0.00042466,120]
[420683968,1776457953333,-151.0,0.00042466,120]
[420683969,1776457953342,-151.0,0.00042466,120]
[420683970,1776457953352,-288.772487,0.00042466,120]
[420683971,1776457953361,-1435.735014,0.00042466,120]
[420683972,1776457953371,-1435.735014,0.00042466,120]
[420683973,1776457953380,-1435.735014,0.00042466,120]
[420683974,1776457953389,-1435.735014,0.00042466,120]
[420683975,1776457953398,-1435.735014,0.00042466,120]
[420683976,1776457953407,-1435.735014,0.00042466,120]
[420683977,1776457953416,-1435.735014,0.00042466,120]
[420683978,1776457953425,-1435.735014,0.00042466,120]
[420683979,1776457953435,-1435.735014,0.00042466,120]
[420683980,1776457953444,-1435.735014,0.00042466,120]
[420683981,1776457953453,-1435.735014,0.00042466,120]
[420683982,1776457953462,-1435.735014,0.00042466,120]
[420683983,1776457953471,-1435.735014,0.00042466,120]
[420683984,1776457953483,-1435.735014,0.00042466,120]
[420683985,1776457953493,-1435.735014,0.00042466,120]
[420683986,1776457953503,-1435.735014,0.00042466,120]
[420683987,1776457953513,-1435.735014,0.00042466,120]
[420683988,1776457953522,-1435.735014,0.00042466,120]
[420683989,1776457953531,-1435.735014,0.00042466,120]
[420683990,1776457953542,-1435.73501,0.00042466,120]
[420683991,1776457953551,-151.0,0.00042466,120]
[420683992,1776457953561,-151.0,0.00042466,120]
[420683993,1776457953570,-151.0,0.00042466,120]
[420683994,1776457953579,-1026.792398,0.00042466,120]
[420683995,1776457953588,-151.0,0.00042466,120]
[420683996,1776457953597,-151.0,0.00042466,120]
[420683997,1776457953616,-151.0,0.00042466,120]
[420683998,1776457953626,-1026.792398,0.00042466,120]
[420683999,1776457953636,-151.0,0.00042466,120]
[420684000,1776457953645,-1026.792398,0.00042466,120]
[420684001,1776457953654,-151.0,0.00042466,120]
[420684002,1776457953663,-151.0,0.00042466,120]
[420684003,1776457953673,-1026.792398,0.00042466,120]
[420684004,1776457953683,-151.0,0.00042466,120]
[420684005,1776457953693,-1026.792398,0.00042466,120]
[420684006,1776457953702,-151.0,0.00042466,120]
[420684007,1776457953711,-1026.792398,0.00042466,120]
[420684008,1776457953721,-151.0,0.00042466,120]
[420684009,1776457953730,-1026.792398,0.00042466,120]
[420684010,1776457953739,-1026.792398,0.00042466,120]
[420684011,1776457953748,-151.0,0.00042466,120]
[420684012,1776457953758,-151.0,0.00042466,120]
[420684013,1776457953767,-1026.792398,0.00042466,120]
[420684014,1776457953776,-243.325143,0.00042466,120]
[420684015,1776457953786,-1026.792398,0.00042466,120]
[420684016,1776457953795,-1026.792398,0.00042466,120]
[420684017,1776457953805,-1026.792398,0.00042466,120]
[420684018,1776457953815,-1026.792398,0.00042466,120]
[420684019,1776457953824,-1026.792398,0.00042466,120]
[420684020,1776457953834,-1026.792398,0.00042466,120]
[420684021,1776457953843,-1026.792398,0.00042466,120]
[420684022,1776457953853,-1026.792398,0.00042466,120]
[420684023,1776457953863,-1026.792398,0.00042466,120]
[420684024,1776457953873,-1026.792398,0.00042466,120]
[420684025,1776457953882,-1026.792395,0.00042466,120]
[420684026,1776457953892,-151.0,0.00042466,120]
[420684027,1776457953902,-151.0,0.00042466,120]
[420684028,1776457953912,-151.0,0.00042466,120]
[420684029,1776457953922,-151.0,0.00042466,120]
[420684030,1776457953931,-151.0,0.00042466,120]
[420684031,1776457953940,-151.0,0.00042466,120]
[420684032,1776457953950,-151.0,0.00042466,120]
[420684033,1776457953959,-151.0,0.00042466,120]
[420684034,1776457953968,-151.0,0.00042466,120]
[420684035,1776457953978,-151.0,0.00042466,120]
[420684036,1776457953988,-151.0,0.00042466,120]
[420684037,1776457953997,-151.0,0.00042466,120]
[420684038,1776457954007,-151.0,0.00042466,120]
[420684039,1776457954016,-152.543335,0.00042466,120]
[420684040,1776457954026,-300.589392,0.00042466,120]
[420684041,1776457954036,-300.589392,0.00042466,120]
[420684042,1776457954045,-300.589392,0.00042466,120]
[420684043,1776457954055,-300.589392,0.00042466,120]
[420684044,1776457954066,-300.589392,0.00042466,120]
[420684045,1776457954075,-300.589392,0.00042466,120]
[420684046,1776457954084,-300.589392,0.00042466,120]
[420684047,1776457954094,-300.589392,0.00042466,120]
[420684048,1776457954103,-300.589392,0.00042466,120]
[420684049,1776457954115,-300.589392,0.00042466,120]
[420684050,1776457954125,-300.589392,0.00042466,120]
[420684051,1776457954135,-300.589392,0.00042466,120]
[420684052,1776457954145,-300.589392,0.00042466,120]
[420684053,1776457954155,-300.589392,0.00042466,120]
[420684054,1776457954164,-300.589392,0.00042466,120]
[420684055,1776457954174,-300.589392,0.00042466,120]
[420684056,1776457954183,-300.589392,0.00042466,120]
[420684057,1776457954193,-300.589392,0.00042466,120]
[420684058,1776457954203,-300.589392,0.00042466,120]
[420684059,1776457954213,-300.589402,0.00042466,120]
[420684060,1776457954223,-2363.207384,0.00042466,120]
[420684061,1776457954233,-2363.207384,0.00042466,120]
[420684062,1776457954244,-2363.207384,0.00042466,120]
[420684063,1776457954254,-2363.207384,0.00042466,120]
[420684064,1776457954264,-2363.207384,0.00042466,120]
[420684065,1776457954274,-2363.207384,0.00042466,120]
[420684066,1776457954284,-2363.207384,0.00042466,120]
[420684067,1776457954293,-2363.207384,0.00042466,120]
[420684068,1776457954303,-2363.207384,0.00042466,120]
[420684069,1776457954313,-2363.207384,0.00042466,120]
[420684070,1776457954322,-2363.207384,0.00042466,120]
[420684071,1776457954331,-2363.207384,0.00042466,120]
[420684072,1776457954342,-2363.207384,0.00042466,120]
[420684073,1776457954351,-2363.207384,0.00042466,120]
[420684074,1776457954360,-2363.207384,0.00042466,120]
[420684075,1776457954369,-2363.207384,0.00042466,120]
[420684076,1776457954379,-2363.207384,0.00042466,120]
[420684077,1776457954388,-2363.207384,0.00042466,120]
[420684078,1776457954397,-2363.207384,0.00042466,120]
[420684079,1776457954407,-2363.207391,0.00042466,120]
[420684080,1776457954416,-7080.641362,0.00042466,14]
[420684081,1776457954426,-7080.641362,0.00042466,14]
[420684082,1776457954435,-7080.641362,0.00042466,14]
[420684083,1776457954445,-7080.641362,0.00042466,14]
[420684084,1776457954454,-7080.641362,0.00042466,14]
[420684085,1776457954464,-7080.641362,0.00042466,14]
[420684086,1776457954474,-7080.641362,0.00042466,14]
[420684087,1776457954484,-7080.641362,0.00042466,14]
[420684088,1776457954494,-7080.641362,0.00042466,14]
[420684089,1776457954503,-7080.641362,0.00042466,14]
[420684090,1776457954513,-7080.641362,0.00042466,14]
[420684091,1776457954523,-7080.641362,0.00042466,14]
[420684092,1776457954533,-7080.641362,0.00042466,14]
[420684093,1776457954542,-7080.641362,0.00042466,14]
[420684094,1776457954553,-7080.641362,0.00042466,14]
[420684095,1776457954562,-7080.641362,0.00042466,14]
[420684096,1776457954572,-7080.641362,0.00042466,14]
[420684097,1776457954581,-7080.641362,0.00042466,14]
[420684098,1776457954590,-7080.641362,0.00042466,14]
[420684099,1776457954600,-7080.641359,0.00042466,14]
[420684100,1776457954609,-352.421407,0.00042466,120]
[420684101,1776457954618,-352.421407,0.00042466,120]
[420684102,1776457954628,-352.421407,0.00042466,120]
[420684103,1776457954639,-352.421407,0.00042466,120]
[420684104,1776457954649,-352.421407,0.00042466,120]
[420684105,1776457954658,-352.421407,0.00042466,120]
[420684106,1776457954668,-352.421407,0.00042466,120]
[420684107,1776457954677,-352.421407,0.00042466,120]
[420684108,1776457954686,-352.421407,0.00042466,120]
[420684109,1776457954696,-352.421407,0.00042466,120]
[420684110,1776457954705,-352.421407,0.00042466,120]
[420684111,1776457954715,-352.421407,0.00042466,120]
[420684112,1776457954725,-352.421407,0.00042466,120]
[420684113,1776457954734,-352.421407,0.00042466,120]
[420684114,1776457954744,-352.421407,0.00042466,120]
[420684115,1776457954753,-352.421407,0.00042466,120]
[420684116,1776457954762,-352.421407,0.00042466,120]
[420684117,1776457954772,-352.421407,0.00042466,120]
[420684118,1776457954782,-352.421407,0.00042466,120]
[420684119,1776457954792,-352.421406,0.00042466,120]
[420684120,1776457954802,-2408.968963,0.00042466,120]
[420684121,1776457954811,-2408.968963,0.00042466,120]
[420684122,1776457954821,-2408.968963,0.00042466,120]
[420684123,1776457954831,-2408.968963,0.00042466,120]
[420684124,1776457954841,-2408.968963,0.00042466,120]
[420684125,1776457954852,-2408.968963,0.00042466,120]
[420684126,1776457954861,-2408.968963,0.00042466,120]
[420684127,1776457954871,-2408.968963,0.00042466,120]
[420684128,1776457954880,-2408.968963,0.00042466,120]
[420684129,1776457954890,-2408.968963,0.00042466,120]
[420684130,1776457954899,-2408.968963,0.00042466,120]
[420684131,1776457954909,-2408.968963,0.00042466,120]
[420684132,1776457954918,-2408.968963,0.00042466,120]
[420684133,1776457954927,-2408.968963,0.00042466,120]
[420684134,1776457954937,-2408.968963,0.00042466,120]
[420684135,1776457954947,-2408.968963,0.00042466,120]
[420684136,1776457954957,-2408.968963,0.00042466,120]
[420684137,1776457954967,-2408.968963,0.00042466,120]
[420684138,1776457954976,-2408.968963,0.00042466,120]
[420684139,1776457954986,-2408.968968,0.00042466,120]
[420684140,1776457954995,-1630.340137,0.00042466,120]
[420684141,1776457955007,-1630.340137,0.00042466,120]
[420684142,1776457955016,-1630.340137,0.00042466,120]
[420684143,1776457955026,-1630.340137,0.00042466,120]
[420684144,1776457955035,-1630.340137,0.00042466,120]
[420684145,1776457955045,-1630.340137,0.00042466,120]
[420684146,1776457955054,-1630.340137,0.00042466,120]
[420684147,1776457955063,-1630.340137,0.00042466,120]
[420684148,1776457955072,-1630.340137,0.00042466,120]
[420684149,1776457955081,-1630.340137,0.00042466,120]
[420684150,1776457955091,-1630.340137,0.00042466,120]
[420684151,1776457955101,-1630.340137,0.00042466,120]
[420684152,1776457955111,-1630.340137,0.00042466,120]
[420684153,1776457955120,-1630.340137,0.00042466,120]
[420684154,1776457955129,-1630.340137,0.00042466,120]
[420684155,1776457955138,-1630.340137,0.00042466,120]
[420684156,1776457955148,-1630.340137,0.00042466,120]
[420684157,1776457955159,-1630.340137,0.00042466,120]
[420684158,1776457955168,-1630.340137,0.00042466,120]
[420684159,1776457955178,-1630.340128,0.00042466,120]
[420684160,1776457955187,-1621.087466,0.00042466,120]
[420684161,1776457955197,-1621.087466,0.00042466,120]
[420684162,1776457955207,-1621.087466,0.00042466,120]
[420684163,1776457955217,-1621.087466,0.00042466,120]
[420684164,1776457955226,-1621.087466,0.00042466,120]
[420684165,1776457955235,-1621.087466,0.00042466,120]
[420684166,1776457955245,-1621.087466,0.00042466,120]
[420684167,1776457955254,-1621.087466,0.00042466,120]
[420684168,1776457955263,-1621.087466,0.00042466,120]
[420684169,1776457955272,-1621.087466,0.00042466,120]
[420684170,1776457955281,-1621.087466,0.00042466,120]
[420684171,1776457955290,-1621.087466,0.00042466,120]
[420684172,1776457955300,-1621.087466,0.00042466,120]
[420684173,1776457955309,-1621.087466,0.00042466,120]
[420684174,1776457955318,-1621.087466,0.00042466,120]
[420684175,1776457955327,-1621.087466,0.00042466,120]
[420684176,1776457955336,-1621.087466,0.00042466,120]
[420684177,1776457955348,-1621.087466,0.00042466,120]
[420684178,1776457955358,-1621.087466,0.00042466,120]
[420684179,1776457955367,-1621.087471,0.00042466,120]
[420684180,1776457955376,-992.169177,0.00042466,120]
[420684181,1776457955386,-992.169177,0.00042466,120]
[420684182,1776457955395,-992.169177,0.00042466,120]
[420684183,1776457955404,-992.169177,0.00042466,120]
[420684184,1776457955413,-992.169177,0.00042466,120]
[420684185,1776457955423,-992.169177,0.00042466,120]
[420684186,1776457955432,-992.169177,0.00042466,120]
[420684187,1776457955441,-992.169177,0.00042466,120]
[420684188,1776457955450,-992.169177,0.00042466,120]
[420684189,1776457955459,-992.169177,0.00042466,120]
[420684190,1776457955469,-992.169177,0.00042466,120]
[420684191,1776457955478,-992.169177,0.00042466,120]
[420684192,1776457955487,-992.169177,0.00042466,120]
[420684193,1776457955497,-992.169177,0.00042466,120]
[420684194,1776457955506,-992.169177,0.00042466,120]
[420684195,1776457955518,-992.169177,0.00042466,120]
[420684196,1776457955528,-992.169177,0.00042466,120]
[420684197,1776457955537,-992.169177,0.00042466,120]
[420684198,1776457955546,-992.169177,0.00042466,120]
[420684199,1776457955561,-992.169185,0.00042466,120]
[420684200,1776457955570,-2134.841147,0.00042466,120]
[420684201,1776457955579,-2134.841147,0.00042466,120]
[420684202,1776457955588,-2134.841147,0.00042466,120]
[420684203,1776457955598,-2134.841147,0.00042466,120]
[420684204,1776457955609,-2134.841147,0.00042466,120]
[420684205,1776457955619,-2134.841147,0.00042466,120]